bitfinex/quotes_ETHUSD_20240824
["timestamp","ask_amount","ask_price","bid_price","bid_amount"]
[1724467683381,2.4312,2759.3,2759.0,3.62438]
[1724467683583,0.06455536,2759.1,2759.0,3.62438]
[1724467683747,2.4312,2759.3,2759.1,3.62429]
[1724467685178,2.4312,2759.3,2758.8,2.2945]
[1724467685179,2.4312,2759.3,2758.8,5.91918]
[1724467685381,2.4312,2759.3,2758.8,3.62468]
[1724467685581,2.4312,2759.3,2759.0,3.62448]
[1724467686753,0.06322844,2759.2,2759.0,3.62448]
[1724467687153,2.4312,2759.3,2759.0,3.62448]
[1724467687378,0.06320312,2759.1,2759.0,3.62448]
[1724467687629,2.4312,2759.3,2759.0,3.62443]
[1724467687794,0.06320312,2759.1,2759.0,3.62443]
[1724467687999,2.4312,2759.3,2759.0,7.24882]
[1724467688326,0.24312,2759.3,2758.7,20.0]
[1724467688497,2.4312,2759.2,2758.7,20.0]
[1724467688825,2.4312,2759.1,2758.7,20.0]
[1724467689031,2.49429617,2759.1,2758.7,20.0]
[1724467689200,6.05579,2759.0,2758.7,20.0]
[1724467689522,2.4312,2758.8,2758.7,20.0]
[1724467690029,2.49410352,2758.8,2758.7,20.0]
[1724467692686,6.11886352,2758.8,2758.7,20.0]
[1724467694510,12.74362352,2758.8,2758.7,20.0]
[1724467694716,16.91838352,2758.8,2758.7,20.0]
[1724467695081,19.01393656,2758.8,2758.7,20.0]
[1724467695548,19.39281295,2758.8,2758.7,20.0]
[1724467703532,23.01757295,2758.8,2758.7,18.10187304]
[1724467703732,25.66923363,2758.8,2758.7,18.10187304]
[1724467704271,25.66786872,2758.8,2758.7,18.10187304]
[1724467704779,25.66786872,2758.8,2758.7,10.85207304]
[1724467704930,25.66786872,2758.8,2758.7,9.03962304]
[1724467705133,25.66786872,2758.8,2758.7,7.22717304]
[1724467705451,23.01757295,2758.8,2758.7,7.22717304]
[1724467705674,25.66614851,2758.8,2758.7,7.22717304]
[1724467706026,25.66614851,2758.8,2758.7,3.04e-06]
[1724467706442,25.66487308,2758.8,2758.7,3.04e-06]
[1724467707673,49.43963308,2758.8,2758.7,3.04e-06]
[1724467707987,46.79233295,2758.8,2758.7,3.04e-06]
[1724467708967,49.43781292,2758.8,2758.7,3.04e-06]
[1724467709154,46.79233295,2758.8,2758.7,3.04e-06]
[1724467709878,49.4375041,2758.8,2758.7,3.04e-06]
[1724467710288,42.46757295,2758.8,2758.7,3.04e-06]
[1724467714685,38.84281295,2758.8,2758.7,3.04e-06]
[1724467718281,42.46757295,2758.8,2758.7,3.04e-06]
[1724467718476,38.84281295,2758.8,2758.7,3.04e-06]
[1724467719699,42.46757295,2758.8,2758.7,3.04e-06]
[1724467724403,45.45249896,2758.8,2758.7,3.04e-06]
[1724467725581,42.80803001,2758.8,2758.7,3.04e-06]
[1724467729628,45.93474874,2758.8,2758.7,3.04e-06]
[1724467730610,45.93804695,2758.8,2758.7,3.04e-06]
[1724467731437,42.80803001,2758.8,2758.7,3.04e-06]
[1724467734405,50.21051452,2758.8,2758.7,3.04e-06]
[1724467735457,46.43279001,2758.8,2758.7,3.04e-06]
[1724467738225,42.80803001,2758.8,2758.7,3.04e-06]
[1724467739150,47.13279001,2758.8,2758.7,3.04e-06]
[1724467740640,3.62653,2757.5,2756.8,2.4866]
[1724467740763,3.62653,2757.5,2757.0,2.4866]
[1724467740764,3.62675,2757.3,2757.0,2.4866]
[1724467743664,17.36225457,2757.7,2757.0,2.4866]
[1724467744030,6.62643,2757.6,2757.0,2.4866]
[1724467745824,3.0,2757.6,2757.0,2.4866]
[1724467747114,3.0,2757.6,2757.0,3.62711]
[1724467747317,7.45,2757.7,2757.2,2.3149]
[1724467747519,11.07621,2757.7,2757.2,2.3149]
[1724467749943,3.62621,2757.7,2757.2,2.3149]
[1724467756151,9.28742856,2757.9,2757.2,2.3149]
[1724467756308,6.62615,2757.8,2757.2,2.3149]
[1724467756643,6.62615,2757.8,2757.4,2.3614]
[1724467759535,3.62623,2757.7,2757.4,2.3614]
[1724467760177,3.62647,2757.5,2757.4,2.3614]
[1724467764271,6.28706071,2757.7,2757.4,2.3614]
[1724467764766,3.62623,2757.7,2757.4,2.3614]
[1724467764967,5.66083071,2757.8,2757.4,2.3614]
[1724467765175,6.62607,2757.8,2757.4,2.59754]
[1724467765868,6.62607,2757.8,2757.4,2.3614]
[1724467768980,3.0,2757.8,2757.4,2.3614]
[1724467770376,6.62609,2757.8,2757.4,2.3614]
[1724467775602,0.06021721,2757.7,2757.4,2.3614]
[1724467775899,6.62609,2757.8,2757.4,2.3614]
[1724467776096,0.06019187,2757.6,2757.4,2.3614]
[1724467776273,6.62609,2757.8,2757.4,2.3614]
[1724467776473,0.06016653,2757.5,2757.4,2.3614]
[1724467776674,6.62609,2757.8,2757.4,2.3614]
[1724467776917,0.06016653,2757.5,2757.4,2.3614]
[1724467777221,5.03634728,2757.8,2757.4,2.3614]
[1724467777222,6.62619,2757.8,2757.4,2.3614]
[1724467777379,12.9139328,2757.8,2757.4,2.3614]
[1724467777700,9.2877428,2757.8,2757.4,2.3614]
[1724467778876,6.62618,2757.8,2757.4,2.3614]
[1724467779089,0.06023182,2757.7,2757.4,2.3614]
[1724467779289,6.62618,2757.8,2757.4,2.3614]
[1724467779561,0.06020648,2757.6,2757.4,2.3614]
[1724467779797,6.62618,2757.8,2757.4,2.3614]
[1724467779977,0.06018114,2757.5,2757.4,2.3614]
[1724467781004,9.28751708,2757.8,2757.4,2.3614]
[1724467781187,0.06018114,2757.5,2757.4,2.3614]
[1724467781399,9.28751708,2757.8,2757.4,2.3614]
[1724467781919,0.06023182,2757.7,2757.4,2.3614]
[1724467782076,6.62618,2757.8,2757.4,2.3614]
[1724467782276,0.06020648,2757.6,2757.4,2.3614]
[1724467782512,6.62618,2757.8,2757.4,2.3614]
[1724467782671,0.06018114,2757.5,2757.4,2.3614]
[1724467783409,9.28747708,2757.8,2757.4,2.3614]
[1724467783675,6.62614,2757.8,2757.4,2.3614]
[1724467783909,9.28747708,2757.8,2757.4,2.3614]
[1724467786307,0.06022208,2757.7,2757.4,2.3614]
[1724467786617,9.28747708,2757.8,2757.4,2.3614]
[1724467787117,0.06022208,2757.7,2757.4,2.3614]
[1724467787278,12.91364708,2757.8,2757.4,2.3614]
[1724467787279,9.28747708,2757.8,2757.4,2.3614]
[1724467787477,0.06019674,2757.6,2757.4,2.3614]
[1724467787680,6.62614,2757.8,2757.4,2.3614]
[1724467787911,0.05813114,2757.5,2757.4,2.3614]
[1724467788082,9.29018541,2757.8,2757.4,2.3614]
[1724467788291,0.05813114,2757.5,2757.4,2.3614]
[1724467788621,9.29018541,2757.8,2757.4,2.3614]
[1724467788822,0.05813114,2757.5,2757.4,2.3614]
[1724467788999,9.29018541,2757.8,2757.4,2.3614]
[1724467789193,0.05813114,2757.5,2757.4,2.3614]
[1724467789424,9.29018541,2757.8,2757.4,2.3614]
[1724467789626,0.05813114,2757.5,2757.4,2.3614]
[1724467789788,9.29018541,2757.8,2757.4,2.3614]
[1724467790119,0.05818182,2757.7,2757.4,2.3614]
[1724467790293,9.29018541,2757.8,2757.4,2.3614]
[1724467790617,0.05815648,2757.6,2757.4,2.3614]
[1724467790919,0.05813114,2757.5,2757.4,2.3614]
[1724467791128,9.29018541,2757.8,2757.4,2.3614]
[1724467791508,0.05816718,2757.7,2757.4,2.3614]
[1724467791708,9.29018541,2757.8,2757.4,2.3614]
[1724467791907,0.05816718,2757.7,2757.4,2.3614]
[1724467792212,2.66404541,2757.7,2757.4,2.3614]
[1724467792410,0.05813211,2757.6,2757.4,2.3614]
[1724467792924,2.66521451,2757.7,2757.4,2.3614]
[1724467793120,0.05810677,2757.5,2757.4,2.3614]
[1724467793323,2.66521451,2757.7,2757.4,2.3614]
[1724467793630,0.05813211,2757.6,2757.4,2.3614]
[1724467798510,15.26881141,2757.8,2757.4,2.3614]
[1724467798719,0.05814771,2757.7,2757.4,2.3614]
[1724467798924,15.26881141,2757.8,2757.4,2.3614]
[1724467799119,0.05814072,2757.7,2757.4,2.3614]
[1724467799323,11.64265141,2757.8,2757.4,2.3614]
[1724467799548,0.05619385,2757.7,2757.4,2.3614]
[1724467800074,11.64265141,2757.8,2757.4,2.3614]
[1724467800524,1.22045436,2757.7,2757.4,2.3614]
[1724467801249,3.88566887,2757.7,2757.4,2.3614]
[1724467801815,1.22045436,2757.7,2757.4,2.3614]
[1724467802271,3.88566887,2757.7,2757.4,2.3614]
[1724467805862,3.88684087,2757.7,2757.4,2.3614]
[1724467806145,3.88682408,2757.7,2757.4,2.3614]
[1724467809959,0.05618922,2757.7,2757.6,3.62634]
[1724467810273,2.66636972,2758.4,2758.1,3.62567]
[1724467810445,3.14964923,2758.6,2758.1,3.62567]
[1724467810446,3.14964923,2758.6,2758.2,2.3145]
[1724467810851,2.66636972,2758.8,2758.2,2.3145]
[1724467810852,0.05039732,2758.5,2758.2,2.3145]
[1724467811183,2.66636972,2758.8,2758.2,2.3145]
[1724467811357,0.05037199,2758.4,2758.2,2.3145]
[1724467811563,6.29104972,2758.9,2758.2,2.3145]
[1724467811760,0.05035365,2758.3,2758.2,2.3145]
[1724467811952,2.495,2758.6,2757.9,2.3145]
[1724467812150,0.0504043,2758.5,2757.9,2.3145]
[1724467812350,0.0504043,2758.5,2757.6,3.62627]
[1724467812351,3.62555,2758.2,2757.5,2.3145]
[1724467812551,0.05060526,2758.1,2757.5,2.3145]
[1724467813471,6.12035,2758.4,2757.5,5.94096]
[1724467813688,0.05057295,2758.0,2757.5,5.94096]
[1724467813888,1.98618797,2758.3,2757.5,5.94096]
[1724467814069,0.05062361,2758.2,2757.5,5.94096]
[1724467814492,0.05062361,2758.2,2757.7,2.3145]
[1724467815580,7.45,2758.5,2757.7,5.94069]
[1724467815581,3.0,2758.4,2757.7,5.94069]
[1724467815862,0.05052028,2758.1,2757.7,5.94069]
[1724467816005,4.31163697,2758.4,2757.7,5.94069]
[1724467816205,0.05049495,2758.0,2757.7,5.94069]
[1724467816406,4.31163697,2758.4,2757.7,5.94069]
[1724467816641,0.05046962,2757.9,2757.7,5.94069]
[1724467816810,3.0,2758.4,2757.7,6.897405]
[1724467817015,0.05044428,2757.8,2757.7,5.94069]
[1724467817213,3.0,2758.4,2757.7,5.94069]
[1724467817611,0.05057094,2758.3,2757.7,5.94069]
[1724467819419,0.05057094,2758.3,2757.8,3.62605]
[1724467819757,0.05057094,2758.3,2757.9,6.10124]
[1724467820448,0.05057094,2758.3,2758.0,3.6258]
[1724467820655,0.05057094,2758.3,2758.2,2.4753]
[1724467821021,2.4529,2758.9,2758.2,2.4753]
[1724467821360,6.07762,2758.9,2758.2,2.4753]
[1724467821528,0.05103391,2758.8,2758.2,2.4753]
[1724467822073,3.05103391,2758.8,2758.2,2.4753]
[1724467822251,0.91286539,2758.7,2758.2,2.4753]
[1724467822568,0.05098327,2758.6,2758.2,2.4753]
[1724467823656,3.0,2758.8,2758.2,2.4753]
[1724467823860,0.05095795,2758.5,2758.2,6.10073]
[1724467824060,3.0,2758.9,2758.3,3.62532]
[1724467824386,3.0,2758.9,2757.6,2.4753]
[1724467824387,2.4529,2758.7,2757.6,2.4753]
[1724467824667,5.4529,2758.7,2757.6,2.4753]
[1724467824829,0.05105153,2758.6,2757.6,2.4753]
[1724467825171,0.05105153,2758.6,2758.0,3.62571]
[1724467827091,0.05105153,2758.6,2758.2,2.4753]
[1724467827399,0.05105153,2758.6,2758.2,6.10084]
[1724467827547,0.05105153,2758.6,2758.2,2.4753]
[1724467830266,0.05105153,2758.6,2758.4,3.6252]
[1724467830455,3.0,2758.9,2758.5,2.4753]
[1724467830665,1.045,2758.8,2758.5,6.10045]
[1724467830984,1.09614116,2758.8,2758.5,6.10045]
[1724467831345,0.05114116,2758.8,2758.5,6.10045]
[1724467831653,0.05114116,2758.8,2758.5,2.4753]
[1724467832066,0.05114116,2758.8,2758.5,6.10038]
[1724467832379,7.45,2759.0,2758.6,3.62502]
[1724467832591,0.09535748,2758.7,2758.6,3.62502]
[1724467832749,7.45,2759.0,2758.6,3.62502]
[1724467833081,8.195,2759.0,2758.5,2.4753]
[1724467833589,0.0954048,2758.9,2758.5,2.4753]
[1724467833793,0.0954048,2758.9,2758.5,6.10044]
[1724467835958,0.0954048,2758.9,2758.6,3.62499]
[1724467836902,25.73701,2759.3,2758.6,3.62499]
[1724467837067,2.936104,2759.2,2758.6,3.62499]
[1724467837683,0.09545212,2759.1,2758.6,3.62499]
[1724467838239,0.09545212,2759.1,2758.6,3.62493]
[1724467838728,0.09542846,2759.0,2758.6,3.62493]
[1724467838899,13.52701,2759.3,2758.6,3.62493]
[1724467839093,0.0954048,2758.9,2758.6,3.62493]
[1724467839399,1.352701,2759.2,2758.6,3.62493]
[1724467839581,1.352701,2759.2,2758.6,7.24987]
[1724467839778,2.4523,2759.1,2758.6,3.62493]
[1724467841024,2.4523,2759.1,2758.6,7.24988]
[1724467841205,3.9402111,2759.1,2758.6,7.24988]
[1724467841380,0.09553579,2759.0,2758.6,7.24988]
[1724467843131,0.09553579,2759.0,2758.7,3.62488]
[1724467845625,0.09553579,2759.0,2758.6,3.62493]
[1724467845787,2.3597,2758.9,2758.4,3.6252]
[1724467845988,2.76327469,2758.9,2758.6,3.62497]
[1724467846186,0.09548847,2758.8,2758.6,3.62497]
[1724467847663,0.09548847,2758.8,2758.4,3.6252]
[1724467847784,0.09548847,2758.8,2758.1,3.62565]
[1724467847785,0.28587632,2758.7,2758.3,3.62538]
[1724467847988,2.45518847,2758.8,2758.4,3.62527]
[1724467851388,2.45518847,2758.8,2758.4,7.25047]
[1724467851629,2.45518847,2758.8,2758.4,3.6252]
[1724467854336,2.45518847,2758.8,2758.2,7.25094]
[1724467854636,2.45518847,2758.8,2758.3,3.62539]
[1724467854929,3.10351579,2758.8,2758.3,3.62539]
[1724467856337,3.10351579,2758.8,2758.4,3.62528]
[1724467859012,3.10351579,2758.8,2757.7,0.610175]
[1724467859013,3.0,2758.7,2757.7,2.4852]
[1724467859214,2.8269,2758.6,2757.7,2.4852]
[1724467859434,3.58269,2758.5,2758.1,3.62568]
[1724467859746,0.09458692,2758.4,2758.2,3.62553]
[1724467860652,0.09458692,2758.4,2758.0,7.25142]
[1724467861013,0.09458692,2758.4,2758.0,5.8908]
[1724467861215,0.09458692,2758.4,2758.3,3.62542]
[1724467861417,3.0,2758.8,2758.4,3.62527]
[1724467861667,2.471,2758.9,2758.4,3.62527]
[1724467862916,0.09458401,2758.8,2758.4,3.62527]
[1724467863113,3.09458401,2758.8,2758.4,3.62527]
[1724467864239,3.09458401,2758.8,2758.3,2.2651]
[1724467866228,3.09458401,2758.8,2758.2,3.62544]
[1724467866461,6.71942401,2758.8,2758.1,6.47986]
[1724467866678,7.3403668,2758.8,2758.1,6.47986]
[1724467867337,6.71942401,2758.8,2758.1,6.47986]
[1724467872991,2.471,2758.7,2758.1,4.21476]
[1724467873165,2.56555547,2758.7,2758.1,4.21476]
[1724467874780,2.56555547,2758.7,2758.1,3.62568]
[1724467876271,3.71946547,2758.7,2758.1,3.62568]
[1724467876469,2.2573,2758.6,2758.1,3.62568]
[1724467876874,2.2573,2758.4,2758.1,3.62568]
[1724467877286,0.0913081,2758.3,2758.1,3.62568]
[1724467879163,2.2573,2758.6,2758.1,3.62568]
[1724467880463,0.09135543,2758.5,2758.1,3.62568]
[1724467882175,0.09135543,2758.5,2758.1,7.25128]
[1724467882378,0.09135543,2758.5,2758.2,3.62554]
[1724467890721,0.09135543,2758.5,2758.1,3.6256]
[1724467890895,0.09135543,2758.5,2758.1,7.25119]
[1724467891699,0.09135543,2758.5,2758.2,3.62554]
[1724467893019,0.09135543,2758.5,2758.1,3.62559]
[1724467893020,0.09135543,2758.5,2758.1,7.25119]
[1724467896479,0.09135543,2758.5,2758.3,3.6254]
[1724467897644,0.09135543,2758.5,2758.4,3.62529]
[1724467898686,2.4214,2758.8,2758.4,3.62529]
[1724467899901,2.4214,2758.8,2758.4,3.62529]
[1724467900515,0.08898983,2758.7,2758.4,3.62529]
[1724467900721,0.08898983,2758.7,2758.3,3.62542]
[1724467900898,0.64002881,2758.7,2758.1,3.62561]
[1724467901223,2.4214,2758.6,2758.1,3.62559]
[1724467901522,2.4214,2758.6,2758.1,7.25118]
[1724467901720,0.0889864,2758.5,2758.2,3.62553]
[1724467902030,0.0889864,2758.5,2758.2,3.62547]
[1724467902319,2.4214,2758.8,2758.2,3.62547]
[1724467902523,0.0889562,2758.4,2758.2,3.62547]
[1724467902816,2.4214,2758.8,2758.3,0.961286]
[1724467903143,2.4214,2758.8,2758.2,3.62547]
[1724467903284,0.0890272,2758.7,2758.2,3.62547]
[1724467905228,0.0890272,2758.7,2758.3,3.62541]
[1724467906390,0.0890272,2758.7,2758.1,3.62559]
[1724467906391,2.4214,2758.6,2758.1,3.62557]
[1724467906621,2.4214,2758.6,2758.2,3.62544]
[1724467908517,0.08897987,2758.5,2758.2,3.62544]
[1724467916141,0.08897987,2758.5,2758.3,3.62541]
[1724467916342,0.08897987,2758.5,2758.3,3.62535]
[1724467916749,2.4679,2758.8,2758.3,3.62535]
[1724467916946,0.08902233,2758.7,2758.3,3.62535]
[1724467918821,0.08902233,2758.7,2758.3,4.350446]
[1724467919025,0.08902233,2758.7,2758.3,3.62535]
[1724467920350,0.08902233,2758.7,2758.1,7.25116]
[1724467920550,0.08902233,2758.7,2758.1,3.62557]
[1724467920752,2.4679,2758.6,2758.1,7.25117]
[1724467920950,2.4679,2758.6,2758.1,3.62557]
[1724467921440,2.4679,2758.6,2758.1,7.25117]
[1724467921650,2.4679,2758.6,2758.1,3.62557]
[1724467921952,2.4679,2758.5,2758.0,3.62578]
[1724467923825,2.4679,2758.5,2758.1,3.62566]
[1724467924026,0.08901963,2758.4,2758.1,3.62566]
[1724467928044,0.08901963,2758.4,2758.1,7.25126]
[1724467928660,0.08901963,2758.4,2758.1,3.6256]
[1724467930180,0.08901963,2758.4,2758.1,7.2512]
[1724467930625,0.08901963,2758.4,2758.1,3.6256]
[1724467930830,0.08901963,2758.4,2758.1,7.2512]
[1724467932977,0.08901963,2758.4,2758.1,3.62559]
[1724467935133,0.08901963,2758.4,2758.2,3.62547]
[1724467944036,0.08901963,2758.4,2758.3,7.32334631]
[1724467944240,9.8684,2759.0,2758.9,3.62463]
[1724467944454,2.4184,2759.2,2759.0,3.62448]
[1724467945181,5.08248125,2759.4,2759.1,3.62437]
[1724467945479,2.4184,2759.4,2759.1,3.62437]
[1724467947559,2.4184,2759.4,2759.0,3.62448]
[1724467948097,0.0862538,2759.3,2759.0,3.62448]
[1724467948400,0.0862538,2759.3,2759.0,3.62441]
[1724467950302,0.0862538,2759.3,2758.9,3.62463]
[1724467955528,0.0862538,2759.3,2759.0,3.62449]
[1724467955897,0.0862538,2759.3,2759.1,3.62436]
[1724467959879,0.0862538,2759.3,2758.9,3.62452]
[1724467960078,2.3081,2759.2,2758.9,3.62452]
[1724467960320,0.08680158,2759.1,2758.9,3.62452]
[1724467968339,0.08680158,2759.1,2758.6,3.625]
[1724467968529,2.2922,2759.0,2758.6,3.625]
[1724467968912,0.08675426,2758.9,2758.6,3.625]
[1724467969713,0.08675426,2758.9,2758.7,3.62487]
[1724467973261,0.08675426,2758.9,2758.7,3.62481]
[1724467978823,0.08675426,2758.9,2758.7,7.24962]
[1724467980150,0.08675426,2758.9,2758.7,3.62481]
[1724467986158,0.08675426,2758.9,2758.8,3.62476]
[1724467987312,0.08675426,2758.9,2758.7,3.62481]
[1724467990034,0.08675426,2758.9,2758.5,3.62504]
[1724467990202,2.3963,2758.8,2758.5,3.62504]
[1724467990733,0.08604744,2758.7,2758.5,3.62504]
[1724467992296,0.08604744,2758.7,2758.5,7.2501]
[1724467993631,0.08604744,2758.7,2758.6,3.62502]
[1724467993929,2.3963,2759.1,2758.6,3.62502]
[1724467994129,2.3963,2759.1,2758.7,3.62487]
[1724467994635,2.3963,2759.1,2758.9,3.62462]
[1724467995353,0.08609081,2759.0,2758.9,3.62462]
[1724467998794,3.0,2759.4,2758.9,3.62462]
[1724467998993,3.0,2759.4,2759.0,3.62445]
[1724467999441,2.4949,2759.5,2759.0,4.589339]
[1724467999996,2.4949,2759.5,2759.0,4.589309]
[1724468000507,2.4949,2759.5,2759.0,3.62442]
[1724468002326,0.08629595,2759.4,2759.0,3.62442]
[1724468010047,2.3219,2759.3,2759.0,3.62442]
[1724468010254,0.08634127,2759.2,2759.0,3.62442]
[1724468010509,2.3219,2759.3,2759.0,3.62442]
[1724468010680,0.08634127,2759.2,2759.0,3.62442]
[1724468010857,2.3219,2759.3,2759.0,3.62442]
[1724468011057,0.08634127,2759.2,2759.0,3.62442]
[1724468011286,2.3219,2759.3,2759.0,3.62442]
[1724468011798,0.08634127,2759.2,2759.0,3.62442]
[1724468012171,2.3219,2759.3,2759.0,3.62442]
[1724468012373,0.08631762,2759.1,2759.0,3.62442]
[1724468012574,2.3219,2759.3,2759.0,3.62442]
[1724468012910,0.08630788,2759.1,2759.0,3.62442]
[1724468013096,2.3219,2759.3,2759.0,3.62442]
[1724468013272,0.08633154,2759.2,2759.0,3.62442]
[1724468013472,2.3219,2759.3,2759.0,3.62442]
[1724468013681,0.08633154,2759.2,2759.0,3.62442]
[1724468013901,2.3219,2759.3,2759.0,3.62442]
[1724468014199,0.08633154,2759.2,2759.0,3.62442]
[1724468014558,2.3219,2759.3,2759.0,3.62442]
[1724468014763,0.08630788,2759.1,2759.0,3.62442]
[1724468014968,2.3219,2759.3,2759.0,3.62442]
[1724468015194,0.08630788,2759.1,2759.0,3.62442]
[1724468015395,2.3219,2759.3,2759.0,3.62442]
[1724468015566,0.08630788,2759.1,2759.0,3.62442]
[1724468015985,2.3219,2759.3,2759.0,3.62442]
[1724468016211,0.08630301,2759.1,2759.0,3.62442]
[1724468016667,2.3219,2759.3,2759.0,3.62442]
[1724468016872,0.08632179,2759.2,2759.0,3.62442]
[1724468017106,2.3219,2759.3,2759.0,3.62442]
[1724468017277,0.08632179,2759.2,2759.0,3.62442]
[1724468017485,2.3219,2759.3,2759.0,3.62442]
[1724468017709,0.08632179,2759.2,2759.0,3.62442]
[1724468017922,2.3219,2759.3,2759.0,3.62442]
[1724468018076,0.08629813,2759.1,2759.0,3.62442]
[1724468018274,2.3219,2759.3,2759.0,3.62442]
[1724468018574,0.08632179,2759.2,2759.0,3.62442]
[1724468019007,2.3219,2759.3,2759.0,3.62442]
[1724468019510,0.08632179,2759.2,2759.0,3.62442]
[1724468019710,2.3219,2759.3,2759.0,3.62442]
[1724468019913,0.08632179,2759.2,2759.0,3.62442]
[1724468020108,2.3219,2759.3,2759.0,3.62442]
[1724468020269,0.08632179,2759.2,2759.0,3.62442]
[1724468020473,2.3219,2759.3,2759.0,3.62442]
[1724468020711,0.08632179,2759.2,2759.0,3.62442]
[1724468020911,2.3219,2759.3,2759.0,3.62442]
[1724468021074,0.08632179,2759.2,2759.0,3.62442]
[1724468021269,2.3219,2759.3,2759.0,3.62442]
[1724468021519,0.08632179,2759.2,2759.0,3.62442]
[1724468022005,2.3219,2759.3,2759.0,3.62442]
[1724468022211,0.08629813,2759.1,2759.0,3.62442]
[1724468022428,2.3219,2759.3,2759.0,4.349324]
[1724468022629,0.08629813,2759.1,2759.0,3.62442]
[1724468022837,2.3219,2759.3,2759.0,3.62442]
[1724468023040,0.08629813,2759.1,2759.0,3.62442]
[1724468023213,2.3219,2759.3,2758.9,3.6246]
[1724468023396,0.08629813,2759.1,2758.9,3.6246]
[1724468023602,2.3219,2759.3,2758.9,3.6246]
[1724468023801,0.08627447,2759.0,2758.9,3.6246]
[1724468024436,2.3219,2759.3,2758.9,3.6246]
[1724468024636,0.08627447,2759.0,2758.9,3.6246]
[1724468024799,2.3219,2759.3,2758.9,3.6246]
[1724468025334,0.08631692,2759.2,2758.9,3.6246]
[1724468025704,2.3219,2759.3,2758.9,3.6246]
[1724468025902,0.08631692,2759.2,2758.9,3.6246]
[1724468026115,2.3219,2759.3,2758.9,3.6246]
[1724468026324,0.08631692,2759.2,2758.9,3.6246]
[1724468026528,2.3219,2759.3,2758.9,3.6246]
[1724468026694,0.08629326,2759.1,2758.9,3.6246]
[1724468026899,2.3219,2759.3,2758.9,3.6246]
[1724468027137,0.08631692,2759.2,2758.9,3.6246]
[1724468027614,2.3219,2759.3,2758.9,3.6246]
[1724468027810,0.08629326,2759.1,2758.9,3.6246]
[1724468027998,2.3219,2759.3,2758.9,3.6246]
[1724468028201,0.08626961,2759.0,2758.9,3.6246]
[1724468028501,0.08623057,2759.0,2758.9,3.6246]
[1724468028713,2.3219,2759.3,2758.9,3.6246]
[1724468029037,0.08627789,2759.2,2758.9,3.6246]
[1724468029434,2.3219,2759.3,2758.9,3.6246]
[1724468030523,0.08626815,2759.2,2758.9,3.6246]
[1724468030726,2.3219,2759.3,2758.9,3.6246]
[1724468030927,0.0862445,2759.1,2758.9,3.6246]
[1724468031241,2.3219,2759.3,2758.9,3.6246]
[1724468031447,0.08622084,2759.0,2758.9,3.6246]
[1724468032037,2.3206,2758.9,2758.7,3.62486]
[1724468032413,0.08617839,2758.8,2758.7,3.62486]
[1724468035618,0.08617839,2758.8,2758.6,3.62496]
[1724468035826,0.08617839,2758.8,2758.6,3.62492]
[1724468037447,0.08617839,2758.8,2758.7,3.62489]
[1724468043029,2.3421,2759.2,2758.8,3.62471]
[1724468043241,3.20847801,2759.2,2758.8,3.62471]
[1724468044755,0.08601364,2759.1,2758.8,3.62471]
[1724468052720,0.08601364,2759.1,2758.8,3.62340176]
[1724468055024,0.08601364,2759.1,2758.6,3.62492]
[1724468055250,2.3421,2759.0,2758.6,3.62492]
[1724468055662,0.08593871,2758.9,2758.6,3.62492]
[1724468056437,0.08593871,2758.9,2758.7,3.62488]
[1724468056645,0.08593871,2758.9,2758.6,7.24986]
[1724468056846,0.08593871,2758.9,2758.7,3.62486]
[1724468063166,0.08593871,2758.9,2758.6,7.24987]
[1724468063463,0.08593871,2758.9,2758.6,7.24986]
[1724468064763,0.08593871,2758.9,2758.7,3.62488]
[1724468067552,0.65432295,2758.9,2758.7,3.62488]
[1724468069987,0.65432295,2758.9,2758.6,3.62492]
[1724468070289,0.95396525,2758.9,2758.7,3.62488]
[1724468071280,0.65432295,2758.9,2758.7,3.62488]
[1724468072347,0.65432295,2758.9,2758.8,3.62476]
[1724468077062,0.65432295,2758.9,2758.6,7.24986]
[1724468077262,0.65432295,2758.9,2758.6,3.62492]
[1724468078758,0.65432295,2758.9,2758.4,3.62517]
[1724468078759,2.4109,2758.8,2758.4,3.62517]
[1724468078905,0.3065223,2758.7,2758.4,3.62517]
[1724468081374,0.3065223,2758.7,2758.4,7.25037]
[1724468082207,0.3065223,2758.7,2758.5,3.62515]
[1724468083275,0.3065223,2758.7,2758.4,3.62517]
[1724468083478,0.3065223,2758.7,2758.5,3.62515]
[1724468083736,0.27174223,2758.6,2758.5,3.62515]
[1724468084273,2.4109,2758.8,2758.5,3.62515]
[1724468087184,2.4109,2758.8,2758.6,3.62501]
[1724468089108,0.08579869,2758.7,2758.6,3.62501]
[1724468090294,0.08579869,2758.7,2758.4,7.25038]
[1724468091119,0.08579869,2758.7,2758.5,3.62512]
[1724468091296,0.24966987,2758.6,2758.5,3.62512]
[1724468091720,0.3354449,2758.6,2758.5,3.62512]
[1724468092496,0.08577503,2758.6,2758.5,3.62512]
[1724468092888,2.4109,2758.8,2758.6,3.625]
[1724468093606,2.4109,2759.1,2758.6,3.625]
[1724468093835,2.4109,2759.1,2758.8,3.62476]
[1724468094037,1.0727278,2759.0,2758.8,3.62476]
[1724468094541,1.0727278,2759.0,2758.9,3.62463]
[1724468094743,2.4109,2759.1,2758.9,3.62463]
[1724468095438,2.4109,2759.1,2758.9,3.62458]
[1724468096463,0.08583067,2759.0,2758.9,3.62458]
[1724468097344,0.08583067,2759.0,2758.7,3.62478]
[1724468101616,0.08583067,2759.0,2758.6,7.24988]
[1724468102552,0.08583067,2759.0,2758.7,3.62485]
[1724468103640,0.08583067,2759.0,2758.6,3.62494]
[1724468108581,0.08583067,2759.0,2758.6,7.24988]
[1724468108777,0.08583067,2759.0,2758.6,3.62494]
[1724468110307,0.08583067,2759.0,2758.7,3.62486]
[1724468110615,0.08583067,2759.0,2758.6,7.24988]
[1724468111877,0.08583067,2759.0,2758.7,3.62486]
[1724468113211,0.08583067,2759.0,2758.6,3.62494]
[1724468121625,0.08583067,2759.0,2758.6,7.24988]
[1724468121825,0.08583067,2759.0,2758.6,3.62494]